bitfinex/quotes_ETHUSD_20250715
["timestamp","ask_amount","ask_price","bid_price","bid_amount"]
[1752589453670,0.001,3049.6,3049.5,12.41671308]
[1752589454761,1e-08,3049.8,3049.7,3.27901105]
[1752589454938,1e-08,3049.8,3049.7,10.11301105]
[1752589455121,1e-08,3049.8,3049.7,11.68674219]
[1752589456061,1e-08,3049.8,3049.7,6.38074219]
[1752589456225,1e-08,3049.8,3049.7,11.7195323]
[1752589456441,1.5921784,3051.7,3049.9,3.456]
[1752589456674,2.80929263,3051.8,3051.7,3.27686207]
[1752589456878,0.04,3051.9,3051.8,3.2767547]
[1752589458238,0.04,3051.9,3051.8,3.4399547]
[1752589459243,0.04,3051.9,3051.1,3.27750647]
[1752589459244,0.2032,3051.9,3051.1,1.7044]
[1752589459442,0.1632,3051.7,3051.6,3.27687762]
[1752589459683,0.1632,3051.7,3051.1,0.1632]
[1752589459684,10.0,3051.6,3051.1,0.1632]
[1752589459883,0.1632,3051.2,3051.1,3.27750647]
[1752589460353,10.85205524,3051.7,3051.1,3.27750647]
[1752589460354,10.0,3051.7,3051.6,3.27696945]
[1752589460552,10.1632,3051.7,3051.6,3.27696945]
[1752589461253,10.1632,3051.7,3048.6,10.1010101]
[1752589461254,1.5848,3049.8,3048.6,10.1010101]
[1752589461577,11.5848,3049.3,3048.6,10.1010101]
[1752589461781,5.51772589,3049.2,3048.6,10.1010101]
[1752589461946,15.485,3049.2,3048.6,10.1010101]
[1752589462277,10.0,3049.2,3048.6,10.1010101]
[1752589462481,15.484,3049.2,3048.6,10.1010101]
[1752589462986,18.76354873,3049.2,3048.6,10.1010101]
[1752589463170,22.85845442,3049.2,3048.6,10.1010101]
[1752589465789,5.34606385,3049.0,3048.6,10.1010101]
[1752589465993,33.0237564,3049.0,3048.6,10.1010101]
[1752589466169,27.51803051,3049.0,3048.6,10.1010101]
[1752589466569,24.11943285,3049.0,3048.6,10.1010101]
[1752589467270,18.64743285,3049.0,3048.6,10.1010101]
[1752589467473,24.11743285,3049.0,3048.6,10.1010101]
[1752589467701,20.836669,3049.0,3048.6,10.1010101]
[1752589467895,15.367669,3049.0,3048.6,10.1010101]
[1752589468066,4.24353669,3049.2,3048.7,3.28006876]
[1752589468265,5.467,3049.1,3048.6,10.1010101]
[1752589468497,5.467,3049.1,3048.7,3.27998263]
[1752589468662,5.467,3049.1,3048.8,3.27989807]
[1752589468862,5.467,3049.1,3048.8,3.27991181]
[1752589469560,1.517,3049.4,3048.6,10.1010101]
[1752589469762,0.1632,3049.2,3048.6,10.2650101]
[1752589469997,10.41489089,3049.2,3048.7,3.28001139]
[1752589470198,0.41489089,3049.2,3048.8,3.27997002]
[1752589470587,10.0,3049.0,3048.7,3.28004574]
[1752589470785,10.0,3049.0,3048.7,3.28005979]
[1752589471000,10.0,3049.0,3048.6,10.2650101]
[1752589471398,17.13113285,3049.0,3048.6,10.1010101]
[1752589471600,18.69983285,3049.0,3048.6,10.1010101]
[1752589472984,19.24983285,3049.0,3048.6,10.1010101]
[1752589473568,13.28008659,3048.7,3048.6,10.1010101]
[1752589473770,30.90205325,3048.7,3048.6,10.1010101]
[1752589474486,34.90205325,3048.7,3048.6,10.1010101]
[1752589475139,36.97715325,3048.7,3048.6,10.1010101]
[1752589475578,31.52715325,3048.7,3048.6,10.1010101]
[1752589475917,38.94915325,3048.7,3048.6,10.1010101]
[1752589476468,38.94915325,3048.7,3048.6,1e-08]
[1752589476816,15.442617,3048.3,3048.2,10.1010101]
[1752589476981,28.740986,3048.3,3048.2,10.1010101]
[1752589477189,28.739986,3048.3,3048.2,10.1010101]
[1752589477524,28.738986,3048.3,3048.2,10.1010101]
[1752589477688,23.293986,3048.3,3048.2,10.1010101]
[1752589477883,28.737986,3048.3,3048.2,10.1010101]
[1752589478909,17.38882463,3048.2,3048.1,0.042]
[1752589479109,37.58842229,3048.2,3048.1,0.042]
[1752589479411,46.88779129,3048.2,3048.1,0.042]
[1752589480307,4.8463705,3047.6,3047.5,10.1010101]
[1752589480612,28.72846539,3047.6,3047.5,10.1010101]
[1752589480814,28.6957395,3047.6,3047.5,10.1010101]
[1752589481177,28.7137395,3047.6,3047.5,10.1010101]
[1752589481420,19.66718334,3047.6,3047.5,10.1010101]
[1752589481619,18.10208334,3047.6,3047.5,10.1010101]
[1752589481904,19.56608334,3047.6,3047.5,10.1010101]
[1752589482075,17.38335384,3047.6,3047.5,10.1010101]
[1752589482275,14.10208334,3047.6,3047.5,10.1010101]
[1752589482480,19.56408334,3047.6,3047.5,10.1010101]
[1752589482781,7.879,3048.2,3047.5,14.72084773]
[1752589482978,9.318369,3048.1,3047.6,0.0328127]
[1752589483209,5.467,3048.1,3048.0,3.28083989]
[1752589483613,7.879,3048.2,3048.1,3.28073225]
[1752589483816,17.343,3048.2,3048.1,3.91718046]
[1752589483993,9.464,3048.2,3048.1,3.91718046]
[1752589484191,9.464,3048.2,3048.1,5.48798046]
[1752589484419,4.0,3048.2,3048.1,5.48798046]
[1752589484615,0.03272589,3048.9,3048.7,3.28008543]
[1752589484816,19.314369,3048.8,3048.7,3.28008543]
[1752589484987,19.314369,3048.8,3048.2,0.03280624]
[1752589484988,0.164,3048.7,3048.4,3.28031639]
[1752589485186,5.463,3048.6,3048.4,3.28031639]
[1752589485518,10.0,3048.5,3048.4,3.28031639]
[1752589486016,10.0,3048.5,3048.4,3.08031639]
[1752589486317,0.164,3048.4,3048.1,2.20724821]
[1752589486526,10.0,3048.2,3048.1,4.85150894]
[1752589487229,10.0,3048.2,3048.1,4.85153225]
[1752589487529,0.164,3048.1,3048.0,3.28079363]
[1752589487690,15.453,3048.1,3048.0,3.28079363]
[1752589488643,15.617,3048.1,3048.0,3.28079363]
[1752589489291,15.617,3048.1,3047.9,3.28089959]
[1752589489492,3.851369,3048.0,3047.8,3.28102213]
[1752589489689,15.446,3047.9,3047.8,3.28102213]
[1752589490338,10.164,3047.8,3047.5,10.1010101]
[1752589490630,10.0,3047.6,3047.5,13.38235819]
[1752589490800,10.0,3047.6,3047.5,10.1010101]
[1752589491000,10.0,3047.6,3047.5,13.38238827]
[1752589491337,5.69147879,3047.6,3047.5,13.38238827]
[1752589491535,5.85347879,3047.6,3047.5,15.0489758]
[1752589492303,5.85347879,3047.6,3047.5,13.38238827]
[1752589493424,5.85347879,3047.6,3047.5,14.88088827]
[1752589493631,0.41547879,3047.6,3047.5,14.88088827]
[1752589493794,5.85147879,3047.6,3047.5,14.88088827]
[1752589494351,10.164,3048.0,3047.8,3.28102393]
[1752589494555,15.431,3047.9,3047.8,3.28102393]
[1752589494716,10.0,3047.8,3047.5,11.5995101]
[1752589494911,15.431,3047.9,3047.5,11.5995101]
[1752589494912,10.164,3047.6,3047.5,10.1010101]
[1752589495262,8.8722705,3047.6,3047.5,10.1010101]
[1752589495555,19.6915021,3047.6,3047.5,10.1010101]
[1752589495738,22.9727726,3047.6,3047.5,10.1010101]
[1752589496521,26.9727726,3047.6,3047.5,10.1010101]
[1752589496722,26.9787726,3047.6,3047.5,10.1010101]
[1752589498562,4.0,3047.6,3047.5,10.1010101]
[1752589498716,0.164,3047.6,3047.5,10.1010101]
[1752589498922,10.164,3047.6,3047.5,13.38238827]
[1752589499426,10.164,3047.6,3047.5,10.1010101]
[1752589500440,0.41533017,3047.6,3047.5,13.38238827]
[1752589500756,5.84133017,3047.6,3047.5,10.1010101]
[1752589501259,5.84133017,3047.6,3047.5,13.38238827]
[1752589501421,5.84133017,3047.6,3047.5,10.1010101]
[1752589501824,45.87405606,3047.6,3047.5,10.1010101]
[1752589502032,50.58290067,3047.6,3047.5,10.1010101]
[1752589503346,47.30163017,3047.6,3047.5,10.1010101]
[1752589503763,51.30163017,3047.6,3047.5,10.1010101]
[1752589504082,19.82933017,3047.6,3047.5,10.1010101]
[1752589504427,49.11060067,3047.6,3047.5,10.1010101]
[1752589504678,45.82933017,3047.6,3047.5,10.1010101]
[1752589504857,49.11060067,3047.6,3047.5,10.1010101]
[1752589505058,15.82933017,3047.6,3047.5,10.1010101]
[1752589505554,15.82533017,3047.6,3047.5,13.38238827]
[1752589506080,0.41533017,3047.6,3047.5,16.52767551]
[1752589506246,5.82133017,3047.6,3047.5,15.04897551]
[1752589506444,5.82133017,3047.6,3047.5,10.1010101]
[1752589506650,15.82133017,3047.6,3047.5,10.1010101]
[1752589507676,10.41533017,3047.6,3047.5,10.1010101]
[1752589508035,15.81533017,3047.6,3047.5,13.38238827]
[1752589508366,15.81533017,3047.6,3047.5,10.1010101]
[1752589508674,15.81533017,3047.6,3047.5,13.38238827]
[1752589509235,15.81533017,3047.6,3047.5,10.1010101]
[1752589509778,15.81533017,3047.6,3047.5,13.38238827]
[1752589509979,15.81533017,3047.6,3047.5,10.1010101]
[1752589512561,10.41533017,3047.6,3047.5,10.1010101]
[1752589512767,15.80133017,3047.6,3047.5,10.1010101]
[1752589513570,15.80133017,3047.6,3047.5,13.38238827]
[1752589513781,15.80133017,3047.6,3047.5,10.1010101]
[1752589514740,15.80133017,3047.6,3047.5,13.38238827]
[1752589515135,10.164,3047.6,3047.5,13.38238827]
[1752589515340,15.543,3047.6,3047.5,15.04897536]
[1752589515931,15.379,3047.6,3047.5,16.56727536]
[1752589517261,10.0,3047.6,3047.5,16.56727536]
[1752589517465,10.0,3047.6,3047.5,11.6193101]
[1752589517466,15.375,3047.6,3047.5,11.6193101]
[1752589517661,15.539,3047.6,3047.5,14.90068827]
[1752589518642,15.539,3047.6,3047.5,11.6193101]
[1752589518932,15.535,3047.6,3047.5,11.6193101]
[1752589519534,10.164,3047.6,3047.5,11.6193101]
[1752589519764,15.533,3047.6,3047.5,11.6193101]
[1752589519970,10.164,3047.6,3047.5,14.90068827]
[1752589520276,15.364,3047.6,3047.5,14.90068827]
[1752589521272,15.364,3047.6,3047.5,16.7191051]
[1752589522086,15.364,3047.6,3047.5,11.6193101]
[1752589522264,15.61409115,3047.6,3047.5,10.1010101]
[1752589522852,10.25009115,3047.6,3047.5,10.1010101]
[1752589523086,15.60909115,3047.6,3047.5,13.38238827]
[1752589523264,15.359,3047.6,3047.5,13.38238827]
[1752589523585,10.0,3047.6,3047.5,13.38238827]
[1752589523877,10.0,3047.6,3047.5,16.596375]
[1752589524458,15.356,3047.6,3047.5,16.596375]
[1752589524840,15.355,3047.6,3047.5,16.596375]
[1752589525256,15.355,3047.6,3047.5,14.92978827]
[1752589527046,15.351,3047.6,3047.5,14.92978827]
[1752589527380,15.346,3047.6,3047.5,14.92978827]
[1752589527582,10.0,3047.6,3047.5,14.92978827]
[1752589527745,15.344,3047.6,3047.5,15.09378827]
[1752589527944,15.344,3047.6,3047.5,16.93151505]
[1752589528350,10.0,3047.6,3047.5,16.93151505]
[1752589529659,0.001,3048.4,3048.3,3.280517]
[1752589530567,0.001,3048.4,3048.3,8.620517]
[1752589530773,0.001,3048.4,3048.3,9.98395055]
[1752589532292,0.001,3048.4,3048.3,9.97895055]
[1752589533156,0.001,3048.4,3048.3,11.50295055]
[1752589533801,1e-08,3048.4,3048.3,11.50295055]
[1752589535970,1e-08,3048.4,3048.3,11.49895055]
[1752589539863,1e-08,3048.4,3048.3,6.16795055]
[1752589540070,1e-08,3048.4,3048.3,11.49795055]
[1752589540801,1e-08,3048.4,3048.3,6.16795055]
[1752589540970,1e-08,3048.4,3048.3,11.49795055]
[1752589543211,0.1632,3049.6,3049.5,3.2792261]
[1752589545007,0.3,3049.7,3049.6,3.27911857]
[1752589545370,0.3,3049.7,3049.6,8.60811857]
[1752589545906,0.3,3049.7,3049.6,10.15511857]
[1752589546709,1e-08,3049.7,3049.6,10.15511857]
[1752589547015,1e-08,3049.9,3049.8,3.27890353]
[1752589547210,1e-08,3049.9,3049.8,4.62229468]
[1752589547505,1e-08,3049.9,3049.8,10.11449468]
[1752589548511,1e-08,3049.9,3049.8,10.11349468]
[1752589549174,1e-08,3049.9,3049.8,4.78549468]
[1752589549372,1e-08,3049.9,3049.8,3.44210353]
[1752589549616,0.1632,3049.8,3049.5,3.27920183]
[1752589549767,1.5468,3049.7,3048.5,3.28025485]
[1752589549967,0.1632,3049.3,3049.1,3.27964305]
[1752589550246,1.5468,3049.2,3048.8,3.279979]
[1752589550433,0.1632,3049.1,3048.9,3.27976594]
[1752589551069,10.0,3048.9,3047.9,3.28093603]
[1752589551292,11.6944,3048.7,3048.4,3.28032512]
[1752589551494,0.164,3048.5,3048.4,3.28032512]
[1752589552915,0.164,3048.5,3043.2,10.62727182]
[1752589552916,10.164,3048.5,3048.1,3.28073225]
[1752589553097,10.164,3048.3,3048.1,3.28073225]
[1752589553302,0.57451697,3048.3,3048.1,3.28073225]
[1752589553628,10.0,3048.1,3047.3,5.329]
[1752589553922,42.49397801,3048.2,3047.8,3.28105518]
[1752589553923,10.0,3047.9,3047.8,3.28105518]
[1752589554101,10.0,3048.1,3047.8,3.28105518]
[1752589554299,1.6242,3048.2,3047.9,3.28094753]
[1752589554503,0.164,3048.1,3048.0,3.28083989]
[1752589557108,0.24809981,3048.3,3048.2,3.28062463]
[1752589557317,0.24809981,3048.3,3048.0,3.44483989]
[1752589557318,11.7843,3048.5,3048.3,3.28051006]
[1752589557903,11.7843,3048.5,3048.4,3.28040939]
[1752589558109,11.7843,3048.5,3048.3,3.28046961]
[1752589558327,11.7843,3048.5,3048.4,3.28040939]
[1752589559393,41.7843,3048.5,3048.1,3.28065767]
[1752589559727,10.0,3048.3,3048.2,3.28062463]
[1752589559914,10.0,3048.3,3047.7,5.328]
[1752589559915,11.864606,3048.5,3048.1,3.28068529]
[1752589560117,0.164,3048.1,3047.6,0.164]
[1752589560344,1.6561,3047.7,3047.5,10.1030101]
[1752589560523,57.8866039,3047.6,3047.5,10.1030101]
[1752589560719,61.13514851,3047.6,3047.5,10.1030101]
[1752589560919,57.85387801,3047.6,3047.5,10.1030101]
[1752589561131,16.9841,3047.6,3047.5,10.1030101]
[1752589561314,46.9841,3047.6,3047.5,10.1030101]
[1752589561643,61.13514851,3047.6,3047.5,10.1030101]
[1752589561845,57.85387801,3047.6,3047.5,10.1030101]
[1752589562048,61.13514851,3047.6,3047.5,10.1030101]
[1752589562198,57.85387801,3047.6,3047.5,10.1030101]
[1752589562405,61.13514851,3047.6,3047.5,10.1030101]
[1752589562655,41.6561,3047.6,3047.5,10.1030101]
[1752589562803,16.9841,3047.6,3047.5,14.39488928]
[1752589563002,10.0,3047.6,3047.5,14.39488928]
[1752589563519,15.329,3047.6,3047.5,14.39488928]
[1752589563846,0.164,3047.7,3047.6,3.2812705]
[1752589564059,5.329,3048.1,3047.8,3.28105518]
[1752589564217,5.329,3048.1,3047.7,3.28112688]
[1752589564218,30.0,3048.0,3047.9,3.28094753]
[1752589564417,10.0,3048.0,3047.9,3.28094753]
[1752589566359,5.328,3048.3,3048.2,3.28051912]
[1752589566557,0.164,3048.4,3048.3,3.280517]
[1752589566859,5.328,3049.0,3048.9,3.27987142]
[1752589567007,1.6204,3049.4,3048.3,0.03280517]
[1752589567008,1.6204,3049.4,3049.3,3.27944118]
[1752589567352,0.00100001,3049.9,3049.6,3.27911857]
[1752589567353,1.652,3049.7,3049.6,3.27911857]
[1752589567653,1.652,3049.7,3049.3,3.27944118]
[1752589567654,0.1632,3049.4,3049.3,3.27944118]
[1752589568946,0.40494794,3049.4,3049.3,3.27944118]
[1752589569183,5.76467383,3049.4,3049.3,3.27944118]
[1752589569483,5.73194794,3049.4,3049.3,3.27944118]
[1752589570982,45.73194794,3049.4,3049.3,3.27944118]
[1752589571278,15.73194794,3049.4,3049.3,3.27944118]
[1752589572049,15.4902,3049.4,3049.3,3.27944118]
[1752589572378,15.327,3049.4,3049.3,3.27944118]
[1752589572579,10.0,3049.4,3049.3,3.27944118]
[1752589572906,12.15218879,3050.6,3049.3,3.27944118]
[1752589572907,5.49020001,3049.9,3049.8,3.27890353]
[1752589573380,0.00100001,3049.9,3049.8,3.27890353]
[1752589574568,0.00100001,3049.9,3049.8,8.60490353]
[1752589575362,0.00100001,3049.9,3049.8,8.76810353]
[1752589575562,0.00100001,3049.9,3049.8,10.27560353]
[1752589575757,0.00100001,3049.9,3049.8,11.63106493]
[1752589576690,0.00100001,3049.9,3049.8,11.63006493]
[1752589576893,0.00100001,3049.9,3049.8,4.79756493]
[1752589577092,0.00100001,3049.9,3049.8,8.60390353]
[1752589577290,1.59930001,3049.9,3049.8,3.27890353]
[1752589577491,1.76250001,3049.9,3049.8,3.27890353]
[1752589578094,1.76250001,3049.9,3049.6,3.27909449]
[1752589578297,11.76250001,3049.9,3049.6,3.27906681]
[1752589578494,0.03272589,3049.8,3049.6,3.27906681]
[1752589578800,11.59930001,3049.9,3049.6,3.27906681]
[1752589578960,0.1632,3049.6,3049.2,0.1632]
[1752589579295,0.1632,3049.6,3049.5,3.2792261]
[1752589579471,0.1632,3049.6,3049.5,9.79148187]
[1752589579798,10.00100001,3049.9,3049.8,3.27890353]
[1752589579799,10.16420001,3049.9,3049.8,3.27890353]
[1752589580096,0.00100001,3049.9,3049.8,3.27890353]
[1752589580487,0.1632,3049.8,3049.1,3.44280957]
[1752589580794,0.03272589,3049.8,3049.6,3.27905948]
[1752589581097,15.35672589,3049.8,3049.3,3.27934382]
[1752589581397,0.1632,3049.4,3049.3,3.27944118]
[1752589581801,10.1632,3049.4,3048.6,0.164]
[1752589581968,0.1632,3049.1,3049.0,3.27967745]
[1752589582983,1.6797,3049.1,3048.5,3.2802868]
[1752589583309,0.1632,3048.8,3048.6,3.28016171]
[1752589583504,0.03272589,3049.0,3048.6,3.28016171]
[1752589583708,0.03272589,3049.0,3048.7,3.28002293]
[1752589583874,0.164,3048.6,3048.3,5.323]
[1752589584071,0.164,3048.6,3048.5,3.28030178]
[1752589584918,0.40886891,3048.6,3048.5,3.28030178]
[1752589585117,0.164,3048.6,3048.5,3.28030178]
[1752589587985,0.164,3048.6,3047.9,0.98430621]
[1752589588213,0.164,3048.3,3048.1,3.28068441]
[1752589588425,0.03272589,3048.4,3047.7,1.5254]
[1752589588593,0.164,3048.1,3048.0,3.28075308]
[1752589588939,10.0,3048.2,3048.1,3.28073183]
[1752589589580,0.164,3048.1,3048.0,3.28083609]
[1752589589805,10.0,3048.2,3048.1,3.28073225]
[1752589590892,10.0,3048.2,3047.9,3.28089057]
[1752589591096,10.0,3048.2,3047.5,10.1030101]
[1752589591097,0.164,3048.0,3047.6,3.28124465]
[1752589591293,0.164,3047.8,3047.7,3.28107471]
[1752589593833,10.0,3047.9,3047.8,3.28105518]
[1752589594285,10.0,3047.9,3047.5,13.38435442]
[1752589594484,0.03272589,3047.8,3047.7,3.28110226]
[1752589595116,15.35472589,3047.8,3047.7,3.28110226]
[1752589595446,0.164,3047.7,3047.6,3.2812705]
[1752589595576,0.164,3047.7,3047.5,10.1030101]
[1752589595577,16.844,3047.8,3047.5,13.38433886]
[1752589595778,0.164,3047.6,3047.5,13.38433886]
[1752589595974,0.164,3047.6,3047.5,10.1030101]
[1752589595975,0.19672589,3047.6,3047.5,10.1030101]
[1752589596182,15.51872589,3047.6,3047.5,10.1030101]
[1752589596485,15.486,3047.6,3047.5,10.1030101]
[1752589597117,26.5972705,3047.6,3047.5,10.1030101]
[1752589597303,23.316,3047.6,3047.5,10.1030101]
[1752589598482,23.316,3047.6,3047.5,13.38438827]
[1752589600328,23.316,3047.6,3047.5,10.1030101]
[1752589600329,23.47884168,3047.6,3047.5,10.1030101]
[1752589600891,10.164,3047.6,3047.5,10.1030101]
[1752589601092,10.164,3047.6,3047.5,14.39488928]
[1752589601294,10.164,3047.6,3047.5,13.38438827]
[1752589601623,10.164,3047.6,3047.5,10.1030101]
[1752589601994,40.164,3047.6,3047.5,10.1030101]
[1752589602912,45.19316147,3047.6,3047.5,10.1030101]
[1752589603117,15.19316147,3047.6,3047.5,10.1030101]
[1752589603322,45.19316147,3047.6,3047.5,10.1030101]
[1752589603627,56.05304271,3047.6,3047.5,10.1030101]
[1752589604232,45.19316147,3047.6,3047.5,10.1030101]
[1752589605634,41.91189097,3047.6,3047.5,10.1030101]
[1752589605834,45.19316147,3047.6,3047.5,10.1030101]
[1752589606436,41.91189097,3047.6,3047.5,10.1030101]
[1752589607534,49.74189097,3047.6,3047.5,10.1030101]
[1752589608437,7.994,3047.6,3047.5,13.38438827]
[1752589609444,17.994,3047.6,3047.5,13.38438827]
[1752589610153,7.994,3047.6,3047.5,13.38438827]
[1752589610650,17.994,3047.6,3047.5,13.38438827]
[1752589610853,10.164,3047.6,3047.5,15.20425508]
[1752589613240,10.0,3047.6,3047.5,15.20425508]
[1752589613808,13.2812705,3047.6,3047.5,10.1030101]
[1752589614009,15.319,3047.6,3047.5,10.1030101]
[1752589614278,10.0,3047.6,3047.5,10.1030101]
[1752589614589,15.319,3047.6,3047.5,10.1030101]
[1752589615227,45.319,3047.6,3047.5,10.1030101]
[1752589617064,15.319,3047.6,3047.5,10.1030101]
[1752589618531,15.319,3047.6,3047.5,13.38438827]
[1752589618727,15.319,3047.6,3047.5,10.1030101]
[1752589618932,15.319,3047.6,3047.5,13.38438827]
[1752589619263,53.149,3047.6,3047.5,10.1030101]
[1752589619462,23.149,3047.6,3047.5,10.1030101]
[1752589619866,23.149,3047.6,3047.5,13.38438827]
[1752589619867,17.83,3047.6,3047.5,13.38438827]
[1752589620070,23.147,3047.6,3047.5,10.1030101]
[1752589620427,53.147,3047.6,3047.5,10.1030101]
[1752589620883,54.7286,3047.6,3047.5,10.1030101]
[1752589621062,23.147,3047.6,3047.5,13.38438827]
[1752589621467,23.147,3047.6,3047.5,10.1030101]
[1752589621684,23.147,3047.6,3047.5,13.38438827]
[1752589621889,23.311,3047.6,3047.5,13.38438827]
[1752589622036,10.164,3047.6,3047.5,16.61018496]
[1752589622540,0.164,3047.6,3047.5,16.61018496]
[1752589622773,5.48,3047.9,3047.5,18.64480679]
[1752589623004,10.0,3047.8,3047.7,3.28116284]
[1752589623742,0.164,3047.9,3047.8,3.28105518]
[1752589623985,10.0,3048.0,3047.8,3.28105518]
[1752589623986,10.0,3048.0,3047.9,3.28094753]
[1752589624591,0.16586991,3048.8,3047.9,9.8164988]
[1752589624906,0.16586991,3048.8,3048.7,4.83908659]
[1752589625081,0.985699,3049.7,3049.4,3.27922935]
[1752589625286,5.315,3050.1,3049.8,3.27890353]
[1752589625444,0.24901676,3049.9,3049.8,3.27890353]
[1752589625844,0.00100001,3049.9,3049.8,3.27890353]
[1752589626097,0.00100001,3049.9,3049.8,4.79410717]
[1752589626475,0.00100001,3049.9,3049.8,10.10810717]
[1752589626756,0.00100001,3049.9,3049.8,11.69820717]
[1752589627267,0.00100001,3049.9,3049.8,3.27890353]
[1752589627470,0.00100001,3049.9,3049.8,8.59290353]
[1752589629286,30.00100001,3049.9,3049.4,1.6102]
[1752589629593,40.0,3049.8,3049.0,1.6102]
[1752589629767,10.0,3049.6,3049.0,1.6102]
[1752589629971,10.0,3049.4,3048.9,3.27985803]
[1752589630172,10.0,3049.2,3048.3,1.6102]
[1752589630357,10.0,3048.8,3048.0,1.6559]
[1752589630552,10.0,3048.6,3048.1,8.59270731]
[1752589630858,10.0,3048.6,3048.1,5.312]
[1752589631087,10.0,3048.6,3048.4,3.28040542]
[1752589631281,10.0,3048.6,3048.5,3.28030178]
[1752589632194,15.312,3049.0,3048.9,3.27980757]
[1752589632403,15.312,3049.0,3048.7,3.28002651]
[1752589632404,5.312,3049.0,3048.8,3.2799391]
[1752589632561,5.312,3049.0,3048.4,3.28040939]
[1752589632754,10.0,3048.9,3048.6,3.28010718]
[1752589633063,10.0,3048.9,3048.8,3.279979]
[1752589633456,10.0,3048.9,3048.7,3.2800381]
[1752589633695,10.0,3048.9,3048.6,3.28015123]
[1752589633696,0.03272589,3048.8,3048.6,3.28015123]
[1752589633899,10.0,3048.9,3048.8,3.279979]
[1752589634701,10.1632,3048.9,3048.3,0.164]
[1752589634877,10.1632,3048.9,3048.6,3.28012704]
[1752589635077,10.0,3048.7,3048.6,3.28012704]
[1752589635795,0.1632,3048.9,3048.8,3.279979]
[1752589636405,0.1632,3048.9,3048.7,3.3128104]
[1752589636699,0.1632,3048.9,3048.6,3.2801262]
[1752589636920,10.1632,3048.9,3048.6,3.28012659]
[1752589637121,10.1632,3048.9,3048.7,3.28006107]
[1752589637297,10.1632,3048.9,3048.8,3.279979]
[1752589637478,0.1632,3048.9,3048.8,3.279979]
[1752589640178,0.1632,3048.9,3048.8,10.218479]
[1752589640379,7.9932,3049.4,3049.1,6.55931258]
[1752589640629,17.9932,3049.4,3049.3,3.27944118]
[1752589641328,17.83,3049.4,3049.3,3.27944118]
[1752589641492,0.1632,3049.6,3049.3,6.55888236]
[1752589641696,0.1632,3049.6,3049.5,3.2792261]
[1752589642020,13.37850258,3050.0,3049.5,3.2792261]
[1752589642021,0.16420001,3049.9,3049.8,3.27890353]
[1752589642377,10.16420001,3049.9,3049.8,3.27890353]
[1752589644316,10.16420001,3049.9,3049.5,3.2792261]
[1752589644317,15.47020001,3049.9,3049.5,3.27915689]
[1752589644516,0.03272589,3049.8,3049.0,10.15000646]
[1752589644722,0.03272589,3049.8,3049.5,3.2792261]
[1752589644723,10.0,3049.6,3049.5,3.2792261]
[1752589645107,0.1632,3049.8,3049.7,3.27901105]
[1752589646516,0.00100001,3049.9,3049.8,3.27890353]
[1752589646720,10.00100001,3049.9,3049.8,3.27890353]
[1752589646923,0.00100001,3049.9,3049.8,4.97507648]
[1752589647242,10.00100001,3049.9,3049.8,4.97507648]
[1752589647439,10.00100001,3049.9,3049.8,3.27890353]
[1752589647827,10.16420001,3049.9,3049.8,3.27890353]
[1752589649115,10.00100001,3049.9,3049.8,3.27890353]
[1752589651640,0.00100001,3049.9,3049.8,3.27890353]
[1752589653043,0.00100001,3049.9,3049.8,3.44210353]
[1752589653351,0.00100001,3049.9,3049.8,4.64451381]
[1752589654057,1e-08,3049.9,3049.8,4.64451381]
[1752589654209,1e-08,3049.9,3049.8,6.24921381]
[1752589654845,1e-08,3049.9,3049.8,6.28200284]
[1752589655061,1e-08,3049.9,3049.8,6.24921381]
[1752589655413,1e-08,3049.9,3049.8,11.55121381]
[1752589656648,1e-08,3049.9,3049.8,11.38801381]
[1752589657626,1e-08,3050.9,3050.8,3.27782876]
[1752589657850,1e-08,3050.9,3050.8,10.75090491]
[1752589658357,1.6776,3051.9,3051.8,3.2767547]
[1752589658358,0.04,3051.9,3051.8,3.2767547]
[1752589658721,0.04,3051.9,3051.8,3.30952224]
[1752589659161,10.04,3051.9,3051.8,3.30952224]
[1752589659360,0.04,3051.9,3051.8,3.2767547]
[1752589660768,0.04,3051.9,3051.8,9.23111626]
[1752589660967,0.04,3051.9,3051.8,5.45551626]
[1752589661167,0.001,3052.2,3052.1,3.27643262]
[1752589661357,0.001,3052.2,3052.1,8.57443262]
[1752589661554,0.001,3052.2,3052.1,10.19343262]
[1752589661867,0.001,3052.2,3052.1,11.5404299]
[1752589662567,0.001,3052.2,3052.1,6.2424299]
[1752589662751,0.001,3052.2,3052.1,11.5394299]
[1752589664777,0.001,3052.2,3052.1,11.49219071]
[1752589665078,0.001,3052.2,3052.1,6.19519071]
[1752589665276,0.001,3052.2,3052.1,11.49119071]
[1752589665446,0.001,3052.2,3052.1,11.49019071]
[1752589666594,0.001,3052.5,3052.4,3.2761106]
[1752589666736,0.001,3053.2,3053.1,3.27535947]
[1752589666943,0.001,3053.2,3053.1,8.57035947]
[1752589667143,0.001,3053.2,3053.1,8.73355947]
[1752589667589,0.001,3053.2,3053.1,8.73255947]
[1752589668100,0.001,3053.2,3053.1,0.1632]
[1752589668294,0.001,3053.2,3053.1,5.293]
[1752589668990,0.001,3053.2,3053.0,5.293]
[1752589669194,0.1642,3053.2,3052.7,3.43893121]
[1752589669404,0.1632,3052.9,3052.4,0.1632]
[1752589669612,0.03272589,3052.8,3052.1,3.27636153]
[1752589669787,0.1632,3052.6,3052.4,3.27609367]
[1752589670291,0.1632,3052.6,3052.2,3.27630469]
[1752589670629,1.548,3052.5,3052.3,5.292]
[1752589670806,1.548,3052.5,3052.0,0.1632]
[1752589670989,0.03272589,3052.4,3051.9,3.27656464]
[1752589671191,0.1632,3052.3,3052.1,5.292]
[1752589671397,1.548,3052.5,3052.3,3.27612287]
[1752589671593,0.1632,3052.6,3052.1,5.292]
[1752589671793,10.0,3052.9,3052.3,3.27621793]
[1752589671968,10.1632,3052.9,3052.7,3.27573355]
[1752589672163,10.1632,3052.9,3052.7,3.27576305]
[1752589672468,10.1632,3052.9,3052.6,3.27585625]
[1752589672808,10.1632,3052.9,3052.7,3.27575824]
[1752589673109,10.1632,3052.9,3052.7,3.27571079]